bitfinex/quotes_BTCUSD_20240921
["timestamp","ask_amount","ask_price","bid_price","bid_amount"]
[1726893741048,0.09083496,62879.0,62878.0,0.85705483]
[1726893741265,0.11466117,62879.0,62878.0,0.85705483]
[1726893741717,0.26856528,62879.0,62878.0,0.85705483]
[1726893741937,0.01936211,62879.0,62878.0,0.85705483]
[1726893743078,0.12071784,62881.0,62880.0,0.74056866]
[1726893743079,0.09693252,62881.0,62880.0,0.74056866]
[1726893743296,0.34607961,62881.0,62880.0,0.74056866]
[1726893744455,0.2488505,62881.0,62880.0,0.74056866]
[1726893744647,0.00165,62881.0,62880.0,0.74056866]
[1726893744910,0.25890869,62881.0,62880.0,0.74156866]
[1726893745386,0.01165,62881.0,62880.0,0.74156866]
[1726893746066,0.13030848,62881.0,62880.0,0.74156866]
[1726893747670,0.20175905,62881.0,62880.0,0.74156866]
[1726893750677,0.20989142,62881.0,62880.0,0.74156866]
[1726893751361,0.2098845,62881.0,62880.0,0.74156866]
[1726893752594,0.09122463,62881.0,62880.0,0.74156866]
[1726893752826,0.20988311,62881.0,62880.0,0.74156866]
[1726893757295,0.20987538,62881.0,62880.0,0.74156866]
[1726893758557,0.2336869,62881.0,62880.0,0.74156866]
[1726893758975,0.48072192,62881.0,62880.0,0.74156866]
[1726893760283,0.07143835,62882.0,62880.0,0.001]
[1726893760470,0.11865848,62881.0,62880.0,0.001]
[1726893760926,0.16628581,62881.0,62880.0,0.001]
[1726893761813,0.16628581,62881.0,62878.0,0.000825]
[1726893762129,0.16628621,62881.0,62878.0,0.000825]
[1726893762992,0.16628621,62881.0,62880.0,0.001]
[1726893763632,0.16628621,62881.0,62878.0,0.000825]
[1726893763837,0.16628621,62881.0,62878.0,0.001825]
[1726893764258,0.16628621,62881.0,62878.0,0.000825]
[1726893764688,0.16628621,62881.0,62880.0,0.001]
[1726893765789,0.25748621,62881.0,62880.0,0.001]
[1726893766024,0.20985848,62881.0,62880.0,0.001]
[1726893766259,0.20985848,62881.0,62878.0,0.000825]
[1726893766510,0.2574888,62881.0,62878.0,0.001825]
[1726893766963,0.25748781,62881.0,62878.0,0.000825]
[1726893767417,0.25748781,62881.0,62880.0,0.001]
[1726893767849,0.25748781,62881.0,62878.0,0.000825]
[1726893768270,0.25748781,62881.0,62878.0,0.001825]
[1726893769216,0.13882933,62881.0,62878.0,0.001825]
[1726893769431,0.11865848,62879.0,62878.0,0.001825]
[1726893770374,0.11865848,62879.0,62878.0,0.000825]
[1726893772444,0.166292,62879.0,62878.0,0.000825]
[1726893772693,0.11865848,62879.0,62878.0,0.000825]
[1726893773773,0.07144798,62880.0,62878.0,0.000825]
[1726893774216,0.11865848,62879.0,62878.0,0.000825]
[1726893775365,0.16629419,62879.0,62878.0,0.000825]
[1726893775579,0.11865848,62879.0,62878.0,0.000825]
[1726893776081,0.11865848,62879.0,62878.0,0.001825]
[1726893776502,0.11865848,62879.0,62878.0,0.000825]
[1726893777774,0.07145287,62880.0,62878.0,0.000825]
[1726893778024,0.11865848,62879.0,62878.0,0.000825]
[1726893778432,0.19011135,62879.0,62878.0,0.000825]
[1726893779484,0.16629661,62879.0,62878.0,0.001825]
[1726893779692,0.16629592,62879.0,62878.0,0.001825]
[1726893779901,0.16629592,62879.0,62878.0,0.000825]
[1726893779902,0.16629573,62879.0,62878.0,0.000825]
[1726893780109,0.11865848,62879.0,62878.0,0.000825]
[1726893781404,0.19011465,62879.0,62878.0,0.000825]
[1726893781850,0.11865848,62879.0,62878.0,0.000825]
[1726893782074,0.19011465,62879.0,62878.0,0.000825]
[1726893782552,0.16629766,62879.0,62878.0,0.000825]
[1726893782769,0.19011465,62879.0,62878.0,0.000825]
[1726893783228,0.11865848,62879.0,62878.0,0.000825]
[1726893783690,0.19011465,62879.0,62878.0,0.000825]
[1726893794976,0.19012547,62879.0,62878.0,0.000825]
[1726893796794,0.07146699,62879.0,62878.0,0.000825]
[1726893797267,0.09611433,62881.0,62878.0,0.000825]
[1726893797268,0.07146699,62880.0,62878.0,0.000825]
[1726893797945,0.04764946,62880.0,62878.0,0.000825]
[1726893798162,0.04764946,62879.0,62878.0,0.000825]
[1726893798383,0.04764946,62880.0,62878.0,0.000825]
[1726893798604,0.04764946,62880.0,62878.0,0.001825]
[1726893799245,0.04764946,62880.0,62878.0,0.000825]
[1726893799895,0.04764602,62880.0,62878.0,0.000825]
[1726893801516,0.04764602,62880.0,62878.0,0.001825]
[1726893804091,0.04764602,62880.0,62878.0,0.000825]
[1726893804306,0.04764602,62880.0,62878.0,0.001825]
[1726893804757,0.0476409,62880.0,62878.0,0.001825]
[1726893804973,0.0476409,62880.0,62878.0,0.000825]
[1726893811418,0.000825,62881.0,62878.0,0.000825]
[1726893811419,0.0476409,62879.0,62878.0,0.000825]
[1726893813168,0.16629938,62879.0,62878.0,0.000825]
[1726893814500,0.16629388,62879.0,62878.0,0.000825]
[1726893815015,0.28581158,62879.0,62878.0,0.000825]
[1726893815234,0.30962929,62879.0,62878.0,0.000825]
[1726893815465,0.54898941,62879.0,62878.0,0.000825]
[1726893821079,0.56694783,62879.0,62878.0,0.000825]
[1726893822975,0.54898941,62879.0,62878.0,0.000825]
[1726893823442,0.33463093,62879.0,62878.0,0.000825]
[1726893823645,0.09527081,62880.0,62878.0,0.000825]
[1726893824060,0.33460714,62880.0,62878.0,0.000825]
[1726893824274,0.09527081,62880.0,62878.0,0.000825]
[1726893824503,0.0714315,62879.0,62878.0,0.000825]
[1726893824639,0.0714315,62880.0,62878.0,0.000825]
[1726893826151,0.0714315,62880.0,62878.0,0.001825]
[1726893826881,0.04762105,62879.0,62878.0,0.001825]
[1726893827115,0.0714315,62880.0,62878.0,0.001825]
[1726893827330,0.04762103,62879.0,62878.0,0.001825]
[1726893827786,0.04762103,62879.0,62878.0,0.000825]
[1726893828428,0.04844603,62881.0,62878.0,0.000825]
[1726893828641,0.04762103,62880.0,62878.0,0.000825]
[1726893828881,0.04762157,62880.0,62878.0,0.000825]
[1726893829261,0.04762157,62880.0,62878.0,0.001825]
[1726893829595,0.04762157,62880.0,62878.0,0.000825]
[1726893829809,0.16628005,62880.0,62878.0,0.000825]
[1726893830011,0.16628005,62880.0,62878.0,0.001825]
[1726893830012,0.04762099,62879.0,62878.0,0.001825]
[1726893830492,0.19009083,62880.0,62878.0,0.001825]
[1726893830958,0.19009083,62880.0,62878.0,0.000825]
[1726893831168,0.19009083,62880.0,62878.0,0.001825]
[1726893832066,0.04762223,62879.0,62878.0,0.001825]
[1726893833212,0.11865848,62880.0,62878.0,0.001825]
[1726893833213,0.19009083,62880.0,62878.0,0.000825]
[1726893833398,0.19009083,62880.0,62878.0,0.001825]
[1726893833639,0.07143235,62879.0,62878.0,0.001825]
[1726893833858,0.19009442,62880.0,62878.0,0.000825]
[1726893834278,0.07143594,62879.0,62878.0,0.001825]
[1726893834407,0.04762426,62879.0,62878.0,0.001825]
[1726893834617,0.04762426,62879.0,62878.0,0.000825]
[1726893835043,0.04762426,62879.0,62878.0,0.001825]
[1726893835283,0.16628274,62880.0,62878.0,0.001825]
[1726893836173,0.16628274,62880.0,62878.0,0.000825]
[1726893836369,0.04762426,62879.0,62878.0,0.000825]
[1726893836517,0.04762426,62879.0,62878.0,0.001825]
[1726893836719,0.16628274,62880.0,62878.0,0.001825]
[1726893836921,0.16628274,62880.0,62878.0,0.000825]
[1726893837123,0.04762426,62879.0,62878.0,0.000825]
[1726893837351,0.28617198,62879.0,62878.0,0.001825]
[1726893837562,0.0987,62879.0,62878.0,0.001825]
[1726893837787,0.2177599,62879.0,62878.0,0.001825]
[1726893838016,0.45706703,62879.0,62878.0,0.001825]
[1726893838234,0.45706703,62879.0,62878.0,0.000825]
[1726893838459,0.45695657,62879.0,62878.0,0.000825]
[1726893839300,0.45695426,62879.0,62878.0,0.000825]
[1726893839697,0.45688817,62879.0,62878.0,0.001825]
[1726893840331,0.33785377,62879.0,62878.0,0.001825]
[1726893840568,0.33785377,62879.0,62878.0,0.000825]
[1726893840770,0.50090744,62879.0,62878.0,0.000825]
[1726893841022,0.61956592,62879.0,62878.0,0.001825]
[1726893841246,0.50090744,62879.0,62878.0,0.001825]
[1726893841483,0.61956592,62879.0,62878.0,0.000825]
[1726893841893,0.71870294,62879.0,62878.0,0.000825]
[1726893842934,0.71870294,62879.0,62878.0,0.001825]
[1726893843281,0.86139309,62879.0,62878.0,0.000825]
[1726893843892,0.86139309,62879.0,62878.0,0.001825]
[1726893844609,0.74273461,62879.0,62878.0,0.001825]
[1726893844864,0.86139309,62879.0,62878.0,0.001825]
[1726893845304,0.71870294,62879.0,62878.0,0.001825]
[1726893846720,0.71856128,62879.0,62878.0,0.001825]
[1726893854402,0.5999028,62879.0,62878.0,0.001825]
[1726893854868,0.71856128,62879.0,62878.0,0.001825]
[1726893855109,0.83734218,62879.0,62878.0,0.001825]
[1726893855571,0.83734218,62879.0,62878.0,0.000825]
[1726893856018,0.83734218,62879.0,62878.0,0.001825]
[1726893856448,0.83734218,62879.0,62878.0,0.000825]
[1726893856673,0.83734218,62879.0,62878.0,0.001825]
[1726893857387,0.04751756,62880.0,62878.0,0.001825]
[1726893857633,0.000825,62881.0,62878.0,0.001825]
[1726893859221,0.11865848,62879.0,62878.0,0.001825]
[1726893859456,0.11865848,62879.0,62878.0,0.000825]
[1726893859674,0.11865848,62879.0,62878.0,0.001825]
[1726893860115,0.11865848,62879.0,62878.0,0.000825]
[1726893860301,0.28171215,62879.0,62878.0,0.000825]
[1726893860521,0.28171215,62879.0,62878.0,0.001825]
[1726893860780,0.32922971,62879.0,62878.0,0.001825]
[1726893860969,0.32922971,62879.0,62878.0,0.000825]
[1726893861492,0.32922971,62879.0,62878.0,0.001825]
[1726893861928,0.28171215,62879.0,62878.0,0.001825]
[1726893862145,0.52066038,62879.0,62878.0,0.001825]
[1726893865534,0.63944859,62879.0,62878.0,0.001825]
[1726893865753,0.52066038,62879.0,62878.0,0.001825]
[1726893875083,0.52030645,62879.0,62878.0,0.001825]
[1726893877298,0.63914183,62879.0,62878.0,0.001825]
[1726893878360,0.63915492,62879.0,62878.0,0.001825]
[1726893878567,0.52030645,62879.0,62878.0,0.001825]
[1726893878986,0.63916441,62879.0,62878.0,0.001825]
[1726893879658,0.52030645,62879.0,62878.0,0.001825]
[1726893884523,0.52078949,62879.0,62878.0,0.001825]
[1726893889036,0.52831065,62879.0,62878.0,0.001825]
[1726893894577,0.67104178,62879.0,62878.0,0.001825]
[1726893894824,0.52840362,62879.0,62878.0,0.001825]
[1726893895564,0.67116352,62879.0,62878.0,0.001825]
[1726893895800,0.52840362,62879.0,62878.0,0.001825]
[1726893896867,0.67116553,62879.0,62878.0,0.001825]
[1726893897083,0.52840362,62879.0,62878.0,0.001825]
[1726893898215,0.67116553,62879.0,62878.0,0.001825]
[1726893898711,0.52840362,62879.0,62878.0,0.001825]
[1726893899822,0.67116553,62879.0,62878.0,0.001825]
[1726893900067,0.52829565,62879.0,62878.0,0.001825]
[1726893902053,0.62019565,62879.0,62878.0,0.001825]
[1726893902527,0.76296955,62879.0,62878.0,0.001825]
[1726893903177,0.62019911,62879.0,62878.0,0.001825]
[1726893904129,0.24658696,62879.0,62878.0,0.001825]
[1726893904399,0.07892624,62879.0,62878.0,0.001825]
[1726893904622,0.00752116,62879.0,62878.0,0.001825]
[1726893905098,0.12617964,62879.0,62878.0,0.000825]
[1726893905333,0.19758685,62879.0,62878.0,0.000825]
[1726893905552,0.12617964,62879.0,62878.0,0.001825]
[1726893905780,0.17378652,62879.0,62878.0,0.001825]
[1726893906022,0.12617964,62879.0,62878.0,0.001825]
[1726893906262,0.19758685,62879.0,62878.0,0.001825]
[1726893906539,0.12617964,62879.0,62878.0,0.001825]
[1726893906772,0.00752116,62879.0,62878.0,0.094825]
[1726893907269,0.00749725,62879.0,62878.0,0.094825]
[1726893907514,0.00749725,62879.0,62878.0,0.093825]
[1726893907775,0.00749725,62879.0,62878.0,0.094825]
[1726893908249,0.00749725,62879.0,62878.0,0.093825]
[1726893908731,0.00749725,62879.0,62878.0,0.094825]
[1726893909235,0.00749725,62879.0,62878.0,0.001825]
[1726893910439,0.00749725,62879.0,62878.0,0.000825]
[1726893910913,0.00749725,62879.0,62878.0,0.001825]
[1726893911398,0.00749725,62879.0,62878.0,0.000825]
[1726893911876,0.11865848,62880.0,62878.0,0.001825]
[1726893913592,0.11865848,62880.0,62878.0,0.000825]
[1726893914114,0.11865848,62880.0,62878.0,0.001825]
[1726893914821,0.11865848,62880.0,62878.0,0.000825]
[1726893915059,0.11865848,62880.0,62878.0,0.001825]
[1726893920783,0.40225384,62879.0,62878.0,0.001825]
[1726893921260,0.52114862,62879.0,62878.0,0.001825]
[1726893921770,0.52114862,62879.0,62878.0,0.000825]
[1726893922017,0.52078324,62879.0,62878.0,0.000825]
[1726893922501,0.52078324,62879.0,62878.0,0.001825]
[1726893923669,0.40196276,62879.0,62878.0,0.000825]
[1726893923907,0.40196276,62879.0,62878.0,0.001825]
[1726893924385,0.40196276,62879.0,62878.0,0.000825]
[1726893924618,0.40196276,62879.0,62878.0,0.001825]
[1726893925363,0.40196276,62879.0,62878.0,0.000825]
[1726893926800,0.40196276,62879.0,62878.0,0.001825]
[1726893927241,0.40196276,62879.0,62878.0,0.000825]
[1726893927510,0.40196276,62879.0,62878.0,0.001825]
[1726893929449,0.49702768,62879.0,62878.0,0.001825]
[1726893929942,0.40196276,62879.0,62878.0,0.001825]
[1726893930425,0.49702913,62879.0,62878.0,0.001825]
[1726893930681,0.40196276,62879.0,62878.0,0.001825]
[1726893931407,0.49702857,62879.0,62878.0,0.001825]
[1726893931646,0.40196276,62879.0,62878.0,0.001825]
[1726893932486,0.49703401,62879.0,62878.0,0.001825]
[1726893932695,0.40196276,62879.0,62878.0,0.001825]
[1726893932891,0.52078324,62879.0,62878.0,0.001825]
[1726893933326,0.40196276,62879.0,62878.0,0.001825]
[1726893933687,0.52078324,62879.0,62878.0,0.001825]
[1726893934352,0.40196276,62879.0,62878.0,0.001825]
[1726893935495,0.49699771,62879.0,62878.0,0.001825]
[1726893935745,0.40196276,62879.0,62878.0,0.001825]
[1726893935963,0.49720763,62879.0,62878.0,0.001825]
[1726893936197,0.40221414,62879.0,62878.0,0.001825]
[1726893936426,0.16305367,62879.0,62878.0,0.001825]
[1726893936655,0.40208298,62879.0,62878.0,0.001825]
[1726893936897,0.16305367,62879.0,62878.0,0.001825]
[1726893937140,0.16305367,62879.0,62878.0,0.000825]
[1726893937373,0.16305367,62879.0,62878.0,0.001825]
[1726893937842,0.16305367,62879.0,62878.0,0.000825]
[1726893938065,0.2343359,62879.0,62878.0,0.000825]
[1726893938344,0.2343359,62879.0,62878.0,0.001825]
[1726893938588,0.18994213,62879.0,62878.0,0.001825]
[1726893938854,0.18994213,62879.0,62878.0,0.000825]
[1726893939080,0.11865848,62879.0,62878.0,0.001825]
[1726893940058,0.18994213,62879.0,62878.0,0.001825]
[1726893940535,0.18994213,62879.0,62878.0,0.000825]
[1726893941006,0.35773036,62879.0,62878.0,0.001825]
[1726893941243,0.35778819,62879.0,62878.0,0.001825]
[1726893941467,0.45282362,62879.0,62878.0,0.000825]
[1726893941704,0.70787729,62879.0,62878.0,0.001825]
[1726893941944,0.61284186,62879.0,62878.0,0.001825]
[1726893942219,0.61284186,62879.0,62878.0,0.000825]
[1726893942220,0.73163615,62879.0,62878.0,0.000825]
[1726893943828,0.73163615,62879.0,62878.0,0.001825]
[1726893946611,0.61284186,62879.0,62878.0,0.001825]
[1726893946836,0.73168806,62879.0,62878.0,0.001825]
[1726893949662,0.61284186,62879.0,62878.0,0.001825]
[1726893949915,0.73170459,62879.0,62878.0,0.001825]
[1726893950636,0.73170392,62879.0,62878.0,0.001825]
[1726893951335,0.47665025,62879.0,62878.0,0.001825]
[1726893951567,0.35778819,62879.0,62878.0,0.001825]
[1726893952720,0.47665025,62879.0,62878.0,0.001825]
[1726893953414,0.35778819,62879.0,62878.0,0.001825]
[1726893953639,0.47666643,62879.0,62878.0,0.001825]
[1726893954351,0.35778819,62879.0,62878.0,0.001825]
[1726893955779,0.35763046,62879.0,62878.0,0.001825]
[1726893959028,0.52068413,62879.0,62878.0,0.001825]
[1726893959253,0.62058413,62879.0,62878.0,0.001825]
[1726893963660,0.52068413,62879.0,62878.0,0.001825]
[1726893964157,0.35763046,62879.0,62878.0,0.001825]
[1726893964393,0.23897198,62879.0,62878.0,0.001825]
[1726893964630,0.000825,62881.0,62878.0,0.001825]
[1726893964631,0.11904344,62880.0,62878.0,0.001825]
[1726893964850,0.09523685,62879.0,62878.0,0.001825]
[1726893965072,0.35801542,62880.0,62878.0,0.001825]
[1726893965311,0.09523617,62879.0,62878.0,0.001825]
[1726893965541,0.23897198,62879.0,62878.0,0.001825]
[1726893965769,0.23897198,62879.0,62878.0,0.000825]
[1726893966015,0.35801542,62880.0,62878.0,0.001825]
[1726893966235,0.35801542,62879.0,62878.0,0.001825]
[1726893966459,0.11904344,62879.0,62878.0,0.000825]
[1726893967374,0.33422796,62879.0,62878.0,0.001825]
[1726893967876,0.09525598,62879.0,62878.0,0.001825]
[1726893968755,0.09523584,62879.0,62878.0,0.001825]
[1726893968979,0.23962148,62879.0,62878.0,0.001825]
[1726893969441,0.35866628,62880.0,62878.0,0.001825]
[1726893969665,0.23962148,62879.0,62878.0,0.001825]
[1726893969915,0.35866628,62880.0,62878.0,0.001825]
[1726893970363,0.35866628,62880.0,62878.0,0.000825]
[1726893970581,0.35866628,62880.0,62878.0,0.001825]
[1726893970805,0.1190448,62879.0,62878.0,0.001825]
[1726893971027,0.23962148,62879.0,62878.0,0.001825]
[1726893971254,0.45853316,62879.0,62878.0,0.001825]
[1726893971909,0.45853316,62879.0,62878.0,0.000825]
[1726893972353,0.45853316,62879.0,62878.0,0.001825]
[1726893972813,0.33952148,62879.0,62878.0,0.001825]
[1726893973283,0.0999,62879.0,62878.0,0.001825]
[1726893973494,0.33925195,62879.0,62878.0,0.001825]
[1726893973711,0.218888,62879.0,62878.0,0.001825]
[1726893973938,0.45823995,62879.0,62878.0,0.001825]
[1726893974170,0.33925195,62879.0,62878.0,0.001825]
[1726893976412,0.1189749,62879.0,62878.0,0.001825]
[1726893976628,0.23935195,62879.0,62878.0,0.001825]
[1726893977050,0.23935195,62880.0,62878.0,0.001825]
[1726893977261,0.23935195,62879.0,62878.0,0.001825]
[1726893978140,0.35833104,62879.0,62878.0,0.001825]
[1726893978397,0.118978,62879.0,62878.0,0.000825]
[1726893978657,0.23935035,62879.0,62878.0,0.000825]
[1726893978888,0.35832865,62879.0,62878.0,0.000825]
[1726893979121,0.35832876,62879.0,62878.0,0.001825]
[1726893979342,0.23935035,62879.0,62878.0,0.001825]
[1726893979563,0.23935035,62880.0,62878.0,0.000825]
[1726893979787,0.35833028,62879.0,62878.0,0.001825]
[1726893980487,0.11897993,62879.0,62878.0,0.001825]
[1726893980749,0.11898092,62879.0,62878.0,0.001825]
[1726893980977,0.11898046,62879.0,62878.0,0.001825]
[1726893981504,0.11898164,62879.0,62878.0,0.001825]
[1726893981739,0.11898164,62879.0,62878.0,0.000825]
[1726893981990,0.23935035,62879.0,62878.0,0.001825]
[1726893982182,0.11897913,62879.0,62878.0,0.001825]
[1726893982423,0.23935035,62880.0,62878.0,0.000825]
[1726893982636,0.35832685,62879.0,62878.0,0.000825]
[1726893982903,0.35832685,62879.0,62878.0,0.001825]
[1726893983131,0.23935035,62879.0,62878.0,0.001825]
[1726893983348,0.11897638,62879.0,62878.0,0.000825]
[1726893983566,0.23926991,62880.0,62878.0,0.000825]
[1726893983567,0.23929189,62880.0,62878.0,0.000825]
[1726893983788,0.35826763,62879.0,62878.0,0.000825]
[1726893984246,0.23929189,62879.0,62878.0,0.000825]
[1726893984501,0.3582674,62879.0,62878.0,0.000825]
[1726893984911,0.11897551,62879.0,62878.0,0.001825]
[1726893985581,0.23929189,62879.0,62878.0,0.000825]
[1726893985803,0.11897551,62879.0,62878.0,0.001825]
[1726893986974,0.3582674,62880.0,62878.0,0.001825]
[1726893988181,0.3582674,62880.0,62878.0,0.000825]
[1726893988419,0.23929745,62879.0,62878.0,0.001825]
[1726893988669,0.35827959,62880.0,62878.0,0.001825]
[1726893989565,0.35827959,62879.0,62878.0,0.000825]
[1726893989793,0.11898214,62879.0,62878.0,0.000825]
[1726893990056,0.11898214,62879.0,62878.0,0.001825]
[1726893990534,0.23929745,62879.0,62878.0,0.001825]
[1726893990779,0.11899584,62879.0,62878.0,0.001825]
[1726893991480,0.23929745,62879.0,62878.0,0.001825]
[1726893991697,0.35829568,62879.0,62878.0,0.001825]
[1726893992147,0.3582917,62879.0,62878.0,0.001825]
[1726893992580,0.11899425,62879.0,62878.0,0.001825]
[1726893993026,0.23765273,62879.0,62878.0,0.001825]
[1726893993254,0.35805961,62879.0,62878.0,0.001825]
[1726893993901,0.47705164,62879.0,62878.0,0.001825]
[1726893994327,0.35805961,62879.0,62878.0,0.001825]
[1726893994549,0.35805961,62879.0,62878.0,0.000825]
[1726893994780,0.35805961,62879.0,62878.0,0.001825]
[1726893995200,0.47705164,62879.0,62878.0,0.000825]
[1726893995622,0.47705164,62879.0,62878.0,0.001825]
[1726893996102,0.47705164,62879.0,62878.0,0.000825]
[1726893997458,0.47705164,62879.0,62878.0,0.001825]
[1726893998115,0.47705164,62879.0,62878.0,0.000825]
[1726893998570,0.35839316,62879.0,62878.0,0.001825]
[1726893998813,0.35805961,62879.0,62878.0,0.001825]
[1726893999041,0.35805961,62879.0,62878.0,0.000825]
[1726893999308,0.04760616,62879.0,62878.0,0.001825]
[1726893999522,0.04760616,62880.0,62878.0,0.001825]
[1726893999738,0.04843116,62881.0,62878.0,0.001825]
[1726894000199,0.04760616,62879.0,62878.0,0.001825]
[1726894001344,0.04843116,62881.0,62878.0,0.000825]
[1726894001573,0.000825,62881.0,62878.0,0.001825]
[1726894001806,0.000825,62881.0,62880.0,0.093]
[1726894004072,0.000825,62881.0,62880.0,0.094]
[1726894004765,0.000825,62881.0,62880.0,0.093]
[1726894004984,0.000825,62881.0,62880.0,0.097]
[1726894005477,0.000825,62881.0,62880.0,0.093]
[1726894007285,0.000825,62881.0,62880.0,0.25605367]
[1726894010495,0.000825,62881.0,62880.0,0.26005367]
[1726894010921,0.000825,62881.0,62880.0,0.25605367]
[1726894011385,0.000825,62881.0,62880.0,0.26205367]
[1726894012947,0.000825,62881.0,62880.0,0.25605367]
[1726894013155,0.000825,62881.0,62880.0,0.25770367]
[1726894013386,0.000825,62881.0,62880.0,0.26070367]
[1726894013616,0.00779141,62881.0,62880.0,0.26070367]
[1726894014304,0.00779141,62881.0,62880.0,0.25770367]
[1726894014749,0.00779141,62881.0,62880.0,0.26270367]
[1726894016157,0.00779141,62881.0,62880.0,0.25770367]
[1726894016612,0.00779141,62881.0,62880.0,0.26170367]
[1726894017073,0.00779141,62881.0,62880.0,0.25770367]
[1726894017209,0.00779141,62881.0,62880.0,0.26070367]
[1726894017866,0.00779141,62881.0,62880.0,0.25770367]
[1726894019587,0.00779141,62881.0,62880.0,0.26170367]
[1726894020218,0.00779141,62881.0,62880.0,0.25770367]
[1726894020440,0.00779141,62881.0,62880.0,0.26070367]
[1726894021513,0.00779141,62881.0,62880.0,0.25770367]
[1726894022987,0.00779141,62881.0,62880.0,0.26170367]
[1726894023397,0.00779141,62881.0,62880.0,0.25770367]
[1726894023803,0.00779141,62881.0,62880.0,0.26070367]
[1726894025268,0.12644989,62881.0,62880.0,0.26070367]
[1726894025476,0.12644989,62881.0,62880.0,0.00465]
[1726894026333,0.12644989,62881.0,62880.0,0.00165]
[1726894027569,0.12644989,62881.0,62880.0,0.00265]
[1726894029815,0.12644989,62881.0,62880.0,0.00165]
[1726894030025,0.12644989,62881.0,62880.0,0.00265]
[1726894031371,0.00779141,62881.0,62880.0,0.00265]
[1726894031607,0.12644989,62881.0,62880.0,0.00265]
[1726894033723,0.22384989,62881.0,62880.0,0.00265]
[1726894034735,0.47900586,62881.0,62880.0,0.00265]
[1726894034985,0.76081248,62881.0,62880.0,0.00265]
[1726894035239,0.64205953,62881.0,62880.0,0.00265]
[1726894035989,0.64205953,62881.0,62880.0,0.00165]
[1726894036236,0.64205953,62881.0,62880.0,0.00265]
[1726894036705,0.64205953,62881.0,62880.0,0.00165]
[1726894036934,0.64205953,62881.0,62880.0,0.00265]
[1726894038617,0.64205953,62881.0,62880.0,0.00165]
[1726894039084,0.65605953,62881.0,62880.0,0.00265]
[1726894039528,0.64205953,62881.0,62880.0,0.00165]
[1726894039989,0.63509312,62881.0,62880.0,0.00165]
[1726894040202,0.64909312,62881.0,62880.0,0.00265]
[1726894041369,0.76771568,62881.0,62880.0,0.00265]
[1726894042263,0.75371568,62881.0,62880.0,0.00165]
[1726894042759,0.75971568,62881.0,62880.0,0.00265]
[1726894043230,0.75371568,62881.0,62880.0,0.00165]
[1726894043705,0.75971568,62881.0,62880.0,0.00265]
[1726894043942,0.76236821,62881.0,62880.0,0.00265]
[1726894044396,0.64377301,62881.0,62880.0,0.00265]
[1726894045318,0.73862671,62881.0,62880.0,0.00265]
[1726894046029,0.40322379,62881.0,62880.0,0.00265]
[1726894046438,0.45064515,62881.0,62880.0,0.00265]
[1726894052067,0.40322379,62881.0,62880.0,0.00265]
[1726894058381,0.45066909,62881.0,62880.0,0.00265]
[1726894059487,0.45067414,62881.0,62880.0,0.00265]
[1726894061333,0.40322379,62881.0,62880.0,0.00265]
[1726894063585,0.47439174,62881.0,62880.0,0.00265]
[1726894063848,0.47443297,62881.0,62880.0,0.00265]
[1726894065479,0.40322379,62881.0,62880.0,0.00265]
[1726894065950,0.74032153,62881.0,62880.0,0.00265]
[1726894067907,0.76524024,62881.0,62880.0,0.00265]
[1726894068373,0.67029467,62881.0,62880.0,0.00265]
[1726894069271,0.78897663,62881.0,62880.0,0.00265]
[1726894069497,0.7890861,62881.0,62880.0,0.00265]
[1726894070416,0.67029467,62881.0,62880.0,0.00265]
[1726894073025,0.55163619,62881.0,62880.0,0.00265]
[1726894073245,0.67029467,62881.0,62880.0,0.00265]
[1726894074356,0.8129744,62881.0,62880.0,0.00265]
[1726894074571,0.67029467,62881.0,62880.0,0.00265]
[1726894075254,0.8129744,62881.0,62880.0,0.00265]
[1726894077301,0.67029467,62881.0,62880.0,0.00265]
[1726894080726,0.55163619,62881.0,62880.0,0.00265]
[1726894080983,0.45423619,62881.0,62880.0,0.00265]
[1726894081203,0.57289467,62881.0,62880.0,0.00265]
[1726894081667,0.58057512,62881.0,62880.0,0.00265]
[1726894084466,0.25665762,62881.0,62880.0,0.00265]
[1726894084724,0.35192686,62881.0,62880.0,0.00265]
[1726894084966,0.006825,62881.0,62880.0,0.00265]
[1726894085209,0.0782577,62881.0,62880.0,0.00265]
[1726894085425,0.04844929,62881.0,62880.0,0.00165]
[1726894085907,0.006825,62881.0,62880.0,0.00265]
[1726894087278,0.04842974,62881.0,62880.0,0.00165]
[1726894087513,0.05442974,62881.0,62880.0,0.00265]
[1726894087989,0.04842974,62881.0,62880.0,0.00165]
[1726894088508,0.05342974,62881.0,62880.0,0.00265]
[1726894088947,0.12448348,62881.0,62880.0,0.00265]
[1726894089426,0.17208822,62881.0,62880.0,0.00265]
[1726894090545,0.17206372,62881.0,62880.0,0.00265]
[1726894091236,0.05340524,62881.0,62880.0,0.00265]
[1726894091455,0.17206372,62881.0,62880.0,0.00265]
[1726894092632,0.12448348,62881.0,62880.0,0.00265]
[1726894093992,0.17206372,62881.0,62880.0,0.00265]
[1726894095586,0.12448348,62881.0,62880.0,0.00265]
[1726894113714,0.005825,62881.0,62880.0,0.11577053]
[1726894114647,0.005825,62881.0,62880.0,0.11580977]
[1726894115312,0.000825,62881.0,62880.0,0.11480977]
[1726894115777,0.006825,62881.0,62880.0,0.11580977]
[1726894116233,0.000825,62881.0,62880.0,0.11480977]
[1726894116466,0.000825,62881.0,62880.0,0.11580977]
[1726894116689,0.006825,62881.0,62880.0,0.11580977]
[1726894117143,0.000825,62881.0,62880.0,0.11480977]
[1726894117365,0.006825,62881.0,62880.0,0.11580977]
[1726894119020,0.000825,62881.0,62880.0,0.11480977]
[1726894119465,0.006825,62881.0,62880.0,0.11580977]
[1726894119900,0.000825,62881.0,62880.0,0.11480977]
[1726894120128,0.006825,62881.0,62880.0,0.11580977]
[1726894120377,0.006825,62881.0,62880.0,0.02060977]
[1726894120607,0.000825,62881.0,62880.0,0.01960977]
[1726894121061,0.006825,62881.0,62880.0,0.00265]
[1726894138062,0.12548348,62881.0,62880.0,0.00265]
[1726894145338,0.29147129,62881.0,62880.0,0.00265]
[1726894145558,0.46282874,62881.0,62880.0,0.00265]
[1726894146231,0.55801269,62881.0,62880.0,0.00265]
[1726894147604,0.46282874,62881.0,62880.0,0.00265]
[1726894148547,0.55799857,62881.0,62880.0,0.00265]